bitfinex/quotes_SOLUSD_20250904
["timestamp","ask_amount","ask_price","bid_price","bid_amount"]
[1757006237298,0.06,204.94,204.93,10.4039535]
[1757006243402,0.06,204.94,204.93,5.52423848]
[1757006243599,0.77,204.94,204.93,3.56848735]
[1757006243781,0.06,204.94,204.93,3.56848735]
[1757006244278,0.77,204.94,204.93,3.56848735]
[1757006245680,0.77,204.94,204.93,3.55313384]
[1757006248088,0.06,204.94,204.93,3.55313384]
[1757006249380,0.06,204.94,204.93,5.50888497]
[1757006249582,3.65578942,204.94,204.93,5.50888497]
[1757006249796,3.65578942,204.94,204.93,1.95575113]
[1757006249983,3.65578942,204.94,204.92,0.03]
[1757006250182,2.88578942,204.93,204.92,0.03]
[1757006250379,0.06,204.94,204.92,3.58437836]
[1757006250581,0.06,204.94,204.93,3.55410444]
[1757006251496,0.06,204.94,204.93,8.43381946]
[1757006252600,3.65578942,204.94,204.93,3.55410444]
[1757006252792,3.65578942,204.94,204.92,0.03]
[1757006252993,0.06,204.94,204.93,3.55607298]
[1757006257482,3.65578942,204.94,204.93,3.55607298]
[1757006257690,3.65578942,204.94,204.92,0.03]
[1757006257888,2.88578942,204.93,204.92,0.03]
[1757006258509,2.88578942,204.9,204.89,0.03]
[1757006258898,3.59578942,204.9,204.89,0.03]
[1757006259307,0.71,204.9,204.89,0.03]
[1757006259604,8.47621889,204.9,204.89,0.03]
[1757006259809,3.59578942,204.9,204.89,0.03]
[1757006259991,41.27607298,204.94,204.89,0.03]
[1757006259992,0.71,204.92,204.89,0.03]
[1757006260187,2.88578942,204.91,204.89,0.03]
[1757006260385,2.88578942,204.9,204.89,0.03]
[1757006260787,5.55240155,204.9,204.89,0.03]
[1757006261699,10.43283102,204.9,204.89,0.03]
[1757006263191,21.9759887,204.9,204.89,0.03]
[1757006263512,16.57161104,204.9,204.89,0.03]
[1757006265524,54.23161104,204.9,204.89,0.03]
[1757006267220,16.57161104,204.9,204.89,0.03]
[1757006267432,54.23161104,204.9,204.89,0.03]
[1757006267726,7.5470416,204.9,204.89,0.03]
[1757006268036,54.23161104,204.9,204.89,0.03]
[1757006268712,45.2070416,204.9,204.89,0.03]
[1757006268918,54.23161104,204.9,204.89,0.03]
[1757006273329,42.57161104,204.9,204.89,0.03]
[1757006273522,73.76271419,204.9,204.89,0.03]
[1757006277737,78.27499891,204.9,204.89,0.03]
[1757006278621,52.27499891,204.9,204.89,0.03]
[1757006280539,54.2320897,204.9,204.89,0.03]
[1757006281129,54.2320897,204.9,204.87,0.1]
[1757006281335,26.0,204.88,204.87,0.1]
[1757006281540,68.17228472,204.88,204.87,0.1]
[1757006281728,68.83228472,204.88,204.87,0.1]
[1757006281931,68.83228472,204.88,204.87,1e-08]
[1757006282236,73.71319061,204.88,204.87,1e-08]
[1757006282439,75.67066449,204.88,204.87,1e-08]
[1757006282848,79.58436898,204.88,204.87,1e-08]
[1757006283741,37.35066449,204.88,204.87,1e-08]
[1757006284042,73.05319061,204.88,204.87,1e-08]
[1757006284339,37.66,204.88,204.87,0.69000001]
[1757006284551,2.01699503,204.92,204.87,0.69000001]
[1757006284741,4.51228472,204.9,204.87,0.69000001]
[1757006284927,4.51228472,204.88,204.87,1e-08]
[1757006285450,37.66,204.89,204.87,1e-08]
[1757006285654,4.51228472,204.88,204.87,0.69000001]
[1757006285945,4.51228472,204.88,204.87,1e-08]
[1757006286345,5.17228472,204.88,204.87,1e-08]
[1757006287323,68.17228472,204.88,204.87,1e-08]
[1757006287526,73.05319061,204.88,204.87,0.69000001]
[1757006287834,37.66,204.88,204.87,0.69000001]
[1757006288144,42.17228472,204.88,204.87,1e-08]
[1757006288559,42.17228472,204.88,204.87,0.69000001]
[1757006289363,42.83228472,204.88,204.87,1e-08]
[1757006289540,47.71319061,204.88,204.87,1e-08]
[1757006290926,10.05319061,204.88,204.87,1e-08]
[1757006291130,4.88070462,204.89,204.87,0.69000001]
[1757006291346,42.17228472,204.88,204.87,1e-08]
[1757006291657,42.17228472,204.88,204.87,0.69000001]
[1757006292052,42.17228472,204.88,204.87,1e-08]
[1757006292262,4.51228472,204.88,204.87,0.69000001]
[1757006292442,42.17228472,204.88,204.87,0.69000001]
[1757006293046,42.17228472,204.88,204.87,1e-08]
[1757006293356,47.05319061,204.88,204.87,1e-08]
[1757006295936,47.71319061,204.88,204.87,1e-08]
[1757006298035,73.71319061,204.88,204.87,1e-08]
[1757006298350,47.71319061,204.88,204.87,1e-08]
[1757006301457,4.88090589,204.88,204.87,1e-08]
[1757006301759,47.05319061,204.88,204.87,1e-08]
[1757006302749,47.75319061,204.88,204.87,1e-08]
[1757006303055,47.05319061,204.88,204.87,1e-08]
[1757006303562,37.66,204.88,204.85,0.27228473]
[1757006305264,37.66,204.88,204.84,4.54228472]
[1757006305658,37.66,204.88,204.84,4.64228472]
[1757006305866,37.66,204.88,204.85,0.1]
[1757006306060,4.51228472,204.9,204.85,4.51228472]
[1757006306263,37.64,204.89,204.86,0.1]
[1757006306943,37.64,204.89,204.85,4.51228472]
[1757006307149,37.64,204.89,204.85,4.61228472]
[1757006307448,37.64,204.89,204.85,4.51228472]
[1757006307760,42.85228472,204.89,204.84,9.42404545]
[1757006307961,42.85228472,204.89,204.84,9.52404545]
[1757006308141,42.85228472,204.89,204.85,4.51228472]
[1757006308142,38.34,204.89,204.85,4.51228472]
[1757006310170,38.34,204.89,204.84,5.01176073]
[1757006310373,38.34,204.89,204.85,4.51228472]
[1757006310964,5.21228472,204.88,204.84,0.03]
[1757006311175,37.64,204.87,204.84,0.03]
[1757006311348,4.51228472,204.86,204.84,0.03]
[1757006311673,37.64,204.85,204.84,0.03]
[1757006312547,38.34,204.85,204.84,0.03]
[1757006316858,37.64,204.85,204.84,0.03]
[1757006319765,38.34,204.85,204.84,0.03]
[1757006320367,38.4,204.85,204.84,0.03]
[1757006331481,43.28162069,204.85,204.84,0.03]
[1757006331791,72.1690786,204.85,204.84,0.03]
[1757006332367,46.1690786,204.85,204.84,0.03]
[1757006332781,48.12664827,204.85,204.84,0.03]
[1757006333366,45.23919036,204.85,204.84,0.03]
[1757006333680,36.48664827,204.85,204.84,0.03]
[1757006334103,74.12664827,204.85,204.84,0.03]
[1757006334597,72.1690786,204.85,204.84,0.03]
[1757006335082,26.76,204.85,204.84,0.03]
[1757006335287,38.4,204.85,204.84,0.03]
[1757006336382,46.1690786,204.85,204.84,0.03]
[1757006337587,43.28162069,204.85,204.84,0.03]
[1757006337892,46.1690786,204.85,204.84,0.03]
[1757006338091,43.28162069,204.85,204.84,0.03]
[1757006338294,46.1690786,204.85,204.84,0.03]
[1757006340388,48.12645669,204.85,204.84,0.03]
[1757006341791,0.06,204.85,204.84,0.03]
[1757006341998,37.7,204.85,204.84,0.03]
[1757006342292,38.42,204.85,204.84,0.03]
[1757006343496,0.06,204.85,204.84,2.91745791]
[1757006343696,0.06,204.85,204.84,3.01745791]
[1757006344393,0.06,204.85,204.84,2.91745791]
[1757006346081,0.06,204.85,204.84,7.79931692]
[1757006346284,0.06,204.85,204.84,7.89931692]
[1757006346496,0.06,204.85,204.84,7.79931692]
[1757006347386,0.06,204.85,204.84,7.89931692]
[1757006348601,0.06,204.85,204.84,5.01185901]
[1757006348917,0.06,204.85,204.84,7.89931692]
[1757006349281,0.06,204.88,204.84,46.59215034]
[1757006349609,0.06,204.88,204.87,33.76860205]
[1757006349990,0.06,204.88,204.87,33.86860205]
[1757006350297,0.06,204.9,204.87,45.9065481]
[1757006350510,0.06,204.9,204.89,40.43728955]
[1757006350689,1e-08,204.9,204.89,40.92535631]
[1757006350889,1e-08,204.9,204.89,41.02535631]
[1757006351200,0.06,204.92,204.89,41.02535631]
[1757006351421,0.06,204.92,204.91,7.76764921]
[1757006351584,0.06,204.92,204.91,8.25566834]
[1757006351784,0.06,204.92,204.91,8.35566834]
[1757006352011,0.06,204.94,204.93,26.0]
[1757006352308,0.06,204.94,204.93,29.37542941]
[1757006352497,0.06,204.94,204.93,29.47542941]
[1757006353518,0.06,204.95,204.94,4.87947692]
[1757006353721,0.06,204.96,204.94,7.86693483]
[1757006353909,0.06,204.98,204.96,26.0]
[1757006354085,0.06,204.98,204.97,26.0]
[1757006354308,0.06,204.98,204.97,29.47533418]
[1757006355000,0.06,204.98,204.97,31.43032062]
[1757006355223,0.06,205.04,204.97,42.98015226]
[1757006355426,0.06,205.04,204.98,14.53728955]
[1757006355631,0.06,205.04,204.98,19.41581428]
[1757006356524,0.06,205.01,204.98,19.41581428]
[1757006357830,0.06,205.01,204.98,7.76598264]
[1757006358041,0.06,205.01,204.98,7.86598264]
[1757006358828,0.06,205.01,204.98,7.76598264]
[1757006359930,0.06,205.01,204.98,19.41581428]
[1757006360320,0.06,205.01,204.98,21.37070518]
[1757006361421,0.06,205.01,204.98,9.82087354]
[1757006361721,0.06,205.01,204.98,89.72087354]
[1757006361923,0.74,205.01,204.98,89.72087354]
[1757006362342,0.06,205.01,204.98,89.72087354]
[1757006363448,0.06,205.01,204.98,101.75855765]
[1757006363628,0.06,205.01,204.98,101.27070518]
[1757006363829,0.06,205.01,204.98,89.72087354]
[1757006364145,0.06,205.01,204.98,127.32087354]
[1757006365147,0.06,205.01,204.98,138.87070518]
[1757006366028,0.06,205.01,204.98,127.32087354]
[1757006367550,0.06,205.01,204.98,89.72087354]
[1757006367854,0.06,205.01,204.98,127.32087354]
[1757006368441,0.06,205.01,204.98,138.87070518]
[1757006369960,0.06,205.01,204.98,86.83341563]
[1757006370139,0.06,205.01,204.98,127.80872601]
[1757006370454,0.06,205.01,204.98,138.87070518]
[1757006371435,0.06,205.01,204.98,101.27070518]
[1757006371641,0.06,205.01,204.98,138.87070518]
[1757006373359,0.06,205.01,204.98,139.00070518]
[1757006373661,0.06,205.01,204.98,138.90070518]
[1757006375371,0.68,205.0,204.98,138.90070518]
[1757006375663,0.06,205.01,204.98,138.90070518]
[1757006375664,0.74,204.99,204.98,112.86341563]
[1757006375870,0.74,204.99,204.98,153.35087354]
[1757006376170,0.74,204.99,204.98,150.46341563]
[1757006376344,0.74,204.99,204.98,153.35087354]
[1757006379348,0.74,204.99,204.98,73.35087354]
[1757006379960,0.06,204.99,204.98,73.35087354]
[1757006383363,0.06,204.99,204.98,70.46341563]
[1757006383564,0.74,204.99,204.98,68.47234881]
[1757006383771,0.74,204.99,204.98,35.75087354]
[1757006383979,0.74,204.99,204.98,73.35087354]
[1757006385463,0.74,204.99,204.98,74.96668561]
[1757006386452,0.74,204.99,204.98,73.01179471]
[1757006386651,0.74,204.99,204.98,35.41179471]
[1757006387155,0.74,204.99,204.95,80.03]
[1757006387156,0.74,204.99,204.96,4.87877558]
[1757006387360,0.68,204.98,204.96,9.38204556]
[1757006387654,0.71,204.97,204.96,9.38204556]
[1757006390651,0.71,204.97,204.96,9.41204556]
[1757006391862,0.71,204.97,204.96,0.03]
[1757006392466,0.71,204.97,204.96,4.53326998]
[1757006393780,0.71,204.97,204.96,9.41227076]
[1757006393955,0.77,204.99,204.96,9.41227076]
[1757006394154,0.06,204.99,204.98,4.50326998]
[1757006394373,0.77,204.99,204.98,4.50326998]
[1757006394650,0.06,204.99,204.98,30.50326998]
[1757006395066,0.06,204.99,204.98,68.10326998]
[1757006395263,0.06,204.99,204.98,68.23326998]
[1757006395462,0.06,204.99,204.98,68.10326998]
[1757006395663,0.06,204.99,204.98,9.38179471]
[1757006395872,0.06,204.99,204.98,46.98179471]
[1757006399593,0.06,205.01,205.0,26.0]
[1757006399762,0.06,205.01,205.0,72.60653996]
[1757006400278,0.06,205.01,205.0,77.48458874]
[1757006400486,0.77,205.01,205.0,72.98131876]
[1757006400877,0.06,205.01,205.0,72.98131876]
[1757006401290,0.06,205.01,205.0,35.38131876]
[1757006401698,0.06,205.01,205.0,72.98131876]
[1757006402289,0.06,205.01,205.0,77.48458874]
[1757006402491,0.06,205.01,205.0,72.98131876]
[1757006403585,0.06,205.01,205.0,35.38131876]
[1757006403785,0.06,205.01,205.0,77.48458874]
[1757006404597,0.06,205.01,205.0,68.47804878]
[1757006404900,0.77,205.01,205.0,72.96131876]
[1757006405089,0.06,205.01,205.0,72.96131876]
[1757006405282,0.77,205.01,205.0,72.96131876]
[1757006405484,0.06,205.01,205.0,72.96131876]
[1757006405682,0.06,205.01,205.0,35.38131876]
[1757006405879,0.77,205.01,205.0,35.38131876]
[1757006406085,0.77,205.01,205.0,72.96131876]
[1757006406673,0.77,205.01,205.0,68.45804878]
[1757006406870,0.77,205.01,205.0,35.38131876]
[1757006407697,0.77,205.01,205.0,30.87804878]
[1757006407890,0.77,205.01,205.0,42.08326998]
[1757006408081,0.77,205.01,204.99,0.03]
[1757006408283,0.71,205.0,204.99,4.53326998]
[1757006410595,0.71,205.0,204.99,9.41155672]
[1757006410785,0.71,205.0,204.99,4.90828674]
[1757006411098,0.71,205.0,204.99,9.41155672]
[1757006411299,0.71,205.0,204.99,4.53326998]
[1757006414413,0.71,205.0,204.99,9.41155672]
[1757006416086,0.06,205.01,204.99,9.41155672]
[1757006416285,0.06,205.01,205.0,4.50326998]
[1757006417204,0.06,205.01,205.0,9.00653996]
[1757006417708,0.06,205.01,205.0,68.08326998]
[1757006418511,0.06,205.01,205.0,77.46458874]
[1757006419298,0.77,205.01,205.0,4.50326998]
[1757006419702,0.77,205.01,204.99,0.03]
[1757006419998,0.77,205.01,204.99,4.53326998]
[1757006420307,0.71,205.0,204.99,4.90827784]
[1757006421605,0.71,205.0,204.99,4.53326998]
[1757006423412,0.71,205.0,204.99,0.03]
[1757006423715,0.71,205.0,204.99,4.53326998]
[1757006423888,0.71,205.0,204.99,0.03]
[1757006424315,0.71,205.0,204.99,4.53326998]
[1757006425090,0.06,205.01,204.99,4.53326998]
[1757006425308,0.06,205.01,205.0,4.50326998]
[1757006426597,0.06,205.01,205.0,35.00653996]
[1757006426797,0.06,205.01,205.0,35.13653996]
[1757006427012,0.06,205.01,205.0,40.01458874]
[1757006427309,0.06,205.01,205.0,39.88458874]
[1757006428528,0.06,205.01,205.0,77.46458874]
[1757006431125,0.06,205.01,205.0,77.59458874]
[1757006431299,0.06,205.03,205.0,78.08239361]
[1757006431506,1e-08,205.04,205.02,4.50326998]
[1757006431805,1e-08,205.04,205.03,68.57100348]
[1757006432123,0.06,205.09,205.03,70.5253213]
[1757006432291,0.06,205.09,205.05,30.50326998]
[1757006432496,0.06,205.09,205.05,68.08326998]
[1757006432709,0.06,205.09,205.05,72.96012928]
[1757006433920,0.06,205.09,205.05,73.09012928]
[1757006434619,0.06,205.09,205.05,72.96012928]
[1757006435598,0.06,205.09,205.06,4.50326998]
[1757006436917,0.06,205.09,205.05,44.41098617]
[1757006437126,0.06,205.09,205.06,4.50326998]
[1757006439610,0.06,205.09,205.06,9.37989145]
[1757006439915,0.06,205.09,205.06,72.95989145]
[1757006440098,0.06,205.09,205.06,74.91401832]
[1757006440298,0.06,205.09,205.06,37.33401832]
[1757006440498,0.77,205.09,205.06,72.95989145]
[1757006441008,0.77,205.09,205.06,35.37989145]
[1757006441309,0.77,205.09,205.06,72.95989145]
[1757006441617,0.77,205.09,205.06,152.95989145]
[1757006442118,0.77,205.07,205.06,148.45662147]
[1757006442414,0.77,205.07,205.06,152.95989145]
[1757006443718,0.77,205.07,205.06,115.37989145]
[1757006443909,0.77,205.07,205.06,152.95989145]
[1757006445325,0.77,205.07,205.06,115.37989145]
[1757006445526,0.77,205.07,205.06,152.95989145]
[1757006446517,0.77,205.07,205.06,115.37989145]
[1757006446818,0.77,205.07,205.06,122.45662147]
[1757006447324,0.77,205.07,205.06,126.95989145]
[1757006447518,0.77,205.07,205.06,45.33676466]
[1757006447821,0.77,205.07,205.06,7.75676466]
[1757006448610,0.77,205.07,205.06,4.87662147]
[1757006448808,0.06,205.07,205.06,4.87662147]
[1757006449121,0.72,205.07,205.06,7.75676466]
[1757006449326,0.06,205.07,205.06,7.75676466]
[1757006449529,0.72,205.07,205.06,7.75676466]
[1757006450020,0.06,205.07,205.06,7.75676466]
[1757006452831,0.06,205.07,205.06,4.87662147]
[1757006453014,0.06,205.07,205.06,7.75676466]
[1757006453920,0.06,205.07,205.06,8.2444268]
[1757006453921,1e-08,205.07,205.06,8.2444268]
[1757006454120,1e-08,205.07,205.06,7.88676466]
[1757006454423,1e-08,205.07,205.06,8.3744268]
[1757006455034,0.06,205.09,205.08,26.0]
[1757006455215,0.06,205.09,205.08,66.44014319]
[1757006455408,0.06,205.09,205.08,66.57014319]
[1757006455729,0.06,205.09,205.08,66.44014319]
[1757006455934,0.06,205.09,205.08,77.96071595]
[1757006456226,0.2,205.1,205.08,78.57833053]
[1757006456418,0.2,205.13,205.12,28.88014319]
[1757006456613,0.2,205.13,205.12,71.31533819]
[1757006456920,1e-08,205.13,205.12,71.31533819]
[1757006457121,1e-08,205.14,205.12,73.39889244]
[1757006457427,1e-08,205.14,205.13,3.01014319]
[1757006457634,0.86,205.22,205.16,26.0]
[1757006457824,0.66,205.2,205.19,26.0]
[1757006458006,0.66,205.2,205.19,63.56]
[1757006458202,0.66,205.2,205.19,26.0]
[1757006458458,0.2,205.22,205.21,26.0]
[1757006458814,0.2,205.22,205.21,30.87305686]
[1757006459010,0.86,205.22,205.21,33.75320005]
[1757006459835,0.86,205.22,205.21,30.87305686]
[1757006460133,0.2,205.22,205.21,33.75320005]
[1757006460311,0.86,205.22,205.21,33.75320005]
[1757006460509,0.86,205.22,205.21,30.87305686]
[1757006460814,0.2,205.22,205.21,7.75320005]
[1757006461130,0.86,205.22,205.21,7.75320005]
[1757006461703,0.86,205.22,205.21,30.87305686]
[1757006461943,0.86,205.22,205.19,26.0]
[1757006462147,0.86,205.22,205.18,26.0]
[1757006462148,0.66,205.21,205.18,26.0]
[1757006462451,0.66,205.2,205.17,2.88014319]
[1757006462604,0.66,205.19,205.18,26.0]
[1757006462809,0.66,205.19,205.17,10.6340967]
[1757006463010,0.66,205.18,205.17,33.75395351]
[1757006464431,0.66,205.19,205.17,33.75395351]
[1757006464629,0.66,205.19,205.18,2.88014319]
[1757006464846,0.66,205.19,205.18,7.75391256]
[1757006465044,0.2,205.22,205.18,7.75391256]
[1757006465226,0.66,205.21,205.2,26.0]
[1757006465430,0.66,205.21,205.2,28.88014319]
[1757006467527,0.66,205.21,205.2,33.75343753]
[1757006469933,0.66,205.21,205.2,26.0]
[1757006470841,0.66,205.21,205.2,30.87329434]
[1757006471147,0.2,205.22,205.2,33.75343753]
[1757006471323,0.2,205.22,205.21,2.88014319]
[1757006471642,0.86,205.22,205.21,7.75320005]
[1757006473836,0.2,205.22,205.21,7.75320005]
[1757006474017,0.2,205.22,205.21,45.31320005]
[1757006474218,0.2,205.22,205.21,125.31320005]
[1757006474943,0.2,205.22,205.21,125.44320005]
[1757006475147,0.2,205.22,205.21,45.44320005]
[1757006475854,1e-08,205.22,205.21,125.44320005]
[1757006477134,0.66,205.27,205.24,26.0]
[1757006477431,0.66,205.27,205.26,2.88014319]
[1757006477632,0.2,205.28,205.26,2.88014319]
[1757006477941,0.2,205.28,205.27,2.88014319]
[1757006478635,0.86,205.28,205.27,7.75177567]
[1757006481630,0.86,205.28,205.26,4.87186982]
[1757006481823,0.2,205.28,205.27,2.88014319]
[1757006482327,0.86,205.28,205.27,2.88014319]
[1757006485536,0.86,205.28,205.26,4.8718337]
[1757006485736,0.2,205.28,205.27,2.88014319]
[1757006486440,0.86,205.28,205.27,2.88014319]
[1757006487039,0.86,205.28,205.25,4.8704467]
[1757006487248,3.54014319,205.27,205.22,2.88014319]
[1757006487428,3.54014319,205.27,205.19,37.54]
[1757006487429,3.54014319,205.26,205.21,7.75307604]
[1757006487637,0.66,205.25,205.22,2.88014319]
[1757006487941,0.66,205.24,205.23,2.88014319]
[1757006490344,3.08014319,205.28,205.23,7.75272517]
[1757006490345,0.66,205.26,205.23,7.75272517]
[1757006490545,0.2,205.28,205.23,19.51708663]
[1757006490753,0.66,205.26,205.24,4.87230702]
[1757006490932,0.66,205.26,205.25,2.88014319]
[1757006491141,0.66,205.25,205.24,4.87230702]
[1757006491330,0.66,205.25,205.24,7.75245021]
[1757006491534,0.66,205.26,205.24,7.75245021]
[1757006491849,0.66,205.26,205.25,2.88014319]
[1757006492024,0.86,205.28,205.25,2.88014319]
[1757006492230,0.86,205.28,205.27,2.88014319]
[1757006493751,0.2,205.28,205.27,2.88014319]
[1757006493924,0.2,205.28,205.27,7.75177567]
[1757006494444,0.86,205.28,205.27,7.75177567]
[1757006495037,0.2,205.28,205.27,7.75177567]
[1757006495840,0.2,205.28,205.26,4.87186982]
[1757006496032,0.2,205.28,205.27,2.88014319]
[1757006496641,0.86,205.28,205.27,2.88014319]
[1757006497637,0.86,205.28,205.27,7.75177567]
[1757006498567,0.86,205.28,205.22,0.03]
[1757006498735,5.73152221,205.28,205.22,0.03]
[1757006499052,5.73152221,205.28,205.27,2.88014319]
[1757006499053,0.86,205.28,205.27,2.88014319]
[1757006499566,3.74014319,205.28,205.23,2.88014319]
[1757006499848,0.66,205.27,205.23,4.87254481]
[1757006500064,0.66,205.26,205.22,0.03]
[1757006500230,0.66,205.26,205.22,2.91014319]
[1757006500428,0.66,205.25,205.22,2.91014319]
[1757006500858,0.66,205.24,205.22,2.91014319]
[1757006501062,0.66,205.23,205.22,2.91014319]
[1757006501956,3.54014319,205.23,205.22,0.03]
[1757006502948,0.66,205.23,205.22,0.03]
[1757006503641,8.41272517,205.23,205.22,0.03]
[1757006503834,8.41272517,205.23,205.19,0.03]
[1757006504037,2.88014319,205.2,205.19,0.03]
[1757006504560,0.66,205.2,205.17,0.03]
[1757006505168,3.54014319,205.2,205.17,0.03]
[1757006505668,5.53339597,205.2,205.17,0.03]
[1757006505836,2.88014319,205.19,205.17,0.03]
[1757006506035,5.53339597,205.2,205.17,0.03]
[1757006506262,0.66,205.18,205.17,0.03]
[1757006507451,5.15773544,205.18,205.17,0.03]
[1757006509459,10.03150481,205.18,205.17,0.03]
[1757006509653,10.03150481,205.18,205.14,0.03]
[1757006509654,5.53376937,205.18,205.14,0.03]
[1757006509843,4.49773544,205.15,205.14,0.03]
[1757006510159,5.53376937,205.18,205.14,0.03]
[1757006510466,0.71,205.15,205.14,0.03]
[1757006510966,5.20773544,205.15,205.14,0.03]
[1757006513067,38.35,205.15,205.14,0.03]
[1757006513444,0.71,205.15,205.14,0.03]
[1757006514564,0.71,205.18,205.14,4.52773544]
[1757006514863,32.88773544,205.2,205.15,4.49773544]
[1757006515068,0.71,205.2,205.17,4.87400692]
[1757006515246,0.06,205.19,205.17,9.37174236]
[1757006515839,0.06,205.19,205.18,4.49773544]
[1757006516351,0.06,205.19,205.18,6.45109889]
[1757006517256,0.06,205.19,205.18,11.32486826]
[1757006517453,0.06,205.19,205.18,37.54486826]
[1757006517651,0.06,205.19,205.18,33.04713282]
[1757006517860,0.77,205.19,205.18,1.95336345]
[1757006518060,0.77,205.19,205.17,30.87397643]
[1757006518260,0.77,205.19,205.17,35.43171187]
[1757006518462,0.77,205.19,205.17,9.43171187]
[1757006518679,0.71,205.18,205.17,4.55773544]
[1757006518854,5.20773544,205.18,205.14,4.90469539]
[1757006519170,0.71,205.17,205.14,4.90469539]
[1757006519377,0.71,205.16,205.14,4.90469539]
[1757006520775,0.06,205.19,205.15,4.49773544]
[1757006520950,0.06,205.19,205.16,4.49773544]
[1757006521152,0.06,205.19,205.17,4.87400692]
[1757006521364,0.06,205.19,205.14,0.25]
[1757006521365,0.71,205.18,205.15,4.87426759]
[1757006521672,0.71,205.17,205.15,4.87426759]
[1757006521860,0.06,205.19,205.15,9.37200303]
[1757006522066,0.06,205.19,205.14,0.03]
[1757006522067,0.71,205.18,205.14,0.03]
[1757006522261,4.55773544,205.19,205.14,0.03]
[1757006522460,0.71,205.17,205.14,0.03]
[1757006522862,0.06,205.19,205.14,9.40242663]
[1757006523052,0.77,205.19,205.15,4.49773544]
[1757006523257,0.71,205.18,205.15,4.49773544]
[1757006523456,0.06,205.19,205.15,9.37214863]
[1757006523676,0.71,205.18,205.15,9.37214863]
[1757006524374,0.71,205.17,205.15,4.87441319]
[1757006525568,0.71,205.16,205.14,0.03]
[1757006526479,0.71,205.16,205.14,4.90466094]
[1757006527778,4.49773544,205.18,205.14,0.03]
[1757006527980,0.71,205.15,205.14,0.03]
[1757006529960,4.49773544,205.18,205.14,0.03]
[1757006530160,4.55773544,205.19,205.14,0.03]
[1757006530463,0.71,205.17,205.14,0.03]
[1757006530676,0.71,205.17,205.14,4.52773544]
[1757006530874,0.06,205.19,205.16,4.49773544]
[1757006531082,0.77,205.19,205.14,0.25]
[1757006531263,0.06,205.19,205.18,4.49773544]
[1757006531466,0.77,205.19,205.17,4.49773544]
[1757006531659,0.77,205.19,205.15,4.93353675]
[1757006531865,0.77,205.19,205.17,9.37172959]
[1757006532264,0.71,205.18,205.15,9.43127219]
[1757006532465,0.71,205.18,205.15,4.49773544]
[1757006532668,0.71,205.17,205.14,4.52773544]
[1757006532877,0.71,205.17,205.16,4.49773544]
[1757006533765,0.71,205.17,205.15,4.49773544]
[1757006533980,0.06,205.19,205.15,4.49773544]
[1757006534188,0.71,205.16,205.15,4.49773544]
[1757006534386,0.71,205.16,205.15,9.37221752]
[1757006534585,0.71,205.16,205.14,9.40238723]
[1757006534770,0.71,205.15,205.14,9.02547088]
[1757006534975,0.71,205.15,205.14,4.52773544]
[1757006535177,0.71,205.15,205.14,0.03]
[1757006536272,0.71,205.17,205.14,4.52773544]
[1757006536578,0.71,205.16,205.14,4.52773544]
[1757006536788,0.71,205.15,205.14,4.52773544]
[1757006537871,0.71,205.15,205.14,0.03]
[1757006538892,10.08221752,205.15,205.14,0.03]
[1757006541179,47.76221752,205.15,205.14,0.03]
[1757006544306,5.20773544,205.15,205.14,0.03]
[1757006544801,42.86773544,205.15,205.14,0.03]